{"text_format":"1","workbook":"xlsx","n_sheets":10,"sheets":["Raw data","Descriptive analysis","Confidence box","Bootstrap","Histogram","CE plane","Net Benefit Histogram","CEAC","Parametric","Module1"],"not_rendered":{"charts":10,"images":0,"macros":1,"external_links":0,"defined_names":30,"comments":0,"pivot_tables":0},"unopened":[{"sheet":"Confidence box","index":2,"reason":"not_a_worksheet"},{"sheet":"Histogram","index":4,"reason":"not_a_worksheet"},{"sheet":"CE plane","index":5,"reason":"not_a_worksheet"},{"sheet":"Net Benefit Histogram","index":6,"reason":"not_a_worksheet"},{"sheet":"CEAC","index":7,"reason":"not_a_worksheet"},{"sheet":"Module1","index":9,"reason":"part_missing"}],"bounds":{"document_bytes":16777216,"sheet_cells":100000,"rows_first":2000,"rows_last":500,"rows_between":2000,"halvings":0,"cell_chars":16384,"cell_head_chars":4096},"cells_cut":0,"cells_raw":0,"read":"whole","date_system":"1900"}

{"sheet":"Raw data","index":0,"n_rows":55,"n_cols":8,"rows_kept":55,"cut":false,"hidden":false,"merged":[[3,1,3,3],[3,5,3,7]]}
[null,"Raw Data"]
[null,null,{"$f":"COUNT(C6:C55)","v":50},null,null,null,{"$f":"COUNT(G6:G55)","v":50}]
[]
[null,"Control Group",null,null,null,"Treatment Group"]
[null,"Patient","Effect","Cost",null,"Patient","Effect","Cost"]
[null,1,5.9092073440551758,801.3622718680034,null,1,7.0333442687988281,1321.7631710046285]
[null,2,5.41554856300354,951.04591984157514,null,2,6.1629600524902344,892.85989522200111]
[null,3,5.8003253936767578,492.46476532726183,null,3,7.206817626953125,813.71805760112477]
[null,4,5.5118298530578613,808.3606802859066,null,4,7.536651611328125,696.61154195696884]
[null,5,5.1396579742431641,290.89175421539426,null,5,4,1019.0117073175162]
[null,6,5.7750225067138672,375.53297025135629,null,6,4.8,1700.2076465136977]
[null,7,5.4267308712005615,656.9989527116951,null,7,6.0770378112792969,1457.9516228974996]
[null,8,6.0165500640869141,270.45522028695672,null,8,7.9239349365234375,591.10013890676919]
[null,9,5.6245226860046387,326.91531892875258,null,9,6.3025379180908203,624.30585605431793]
[null,10,6.8750972747802734,682.51740870523099,null,10,6.6317386627197266,1459.3057837223737]
[null,11,7.1636142730712891,1250.6796145320986,null,11,7.3252754211425781,1676.6111905599887]
[null,12,5.9871201515197754,387.20945346503044,null,12,6.2700881958007812,539.87032196858627]
[null,13,7.1907310485839844,365.22443901361385,null,13,7.8001441955566406,1706.2878873740692]
[null,14,5.942542552947998,333.34639817913188,null,14,5.1060171127319336,790.94571909520732]
[null,15,5.1845781803131104,769.94172397438251,null,15,6.3988132476806641,526.98061610927414]
[null,16,5.8189141750335693,587.57108928567334,null,16,7.2910556793212891,943.21443444395766]
[null,17,6.6358242034912109,846.23684062252528,null,17,6.4292945861816406,1316.9243782243216]
[null,18,5.2348713874816895,312.72140252316615,null,18,6.123560905456543,611.68157179604054]
[null,19,5.3343205451965332,194.4302968585242,null,19,5.5472087860107422,762.39949489865251]
[null,20,5.2537291049957275,311.72192429631843,null,20,5.4545040130615234,1376.1499032365173]
[null,21,5.6564874649047852,1016.0583399106364,null,21,6.3634052276611328,958.53329968131061]
[null,22,5.1655781269073486,1424.2009704638724,null,22,5.4506721496582031,780.97183320400484]
[null,23,6.022761344909668,247.77610316264699,null,23,6.9124164581298828,810.16895063084678]
[null,24,6.9843482971191406,283.43514522239889,null,24,7.2123832702636719,886.87876004418149]
[null,25,5.5747623443603516,917.31304626140559,null,25,6.6843490600585938,638.59889620709805]
[null,26,7.2112588882446289,1652.9723782441556,null,26,5.9018898010253906,1665.8217035481039]
[null,27,5.4043004512786865,1151.5451359488291,null,27,5.4845314025878906,860.07427599073446]
[null,28,6.2729048728942871,171.21488558779117,null,28,6.3590888977050781,1385.0789583227738]
[null,29,6.0511355400085449,634.92838732628093,null,29,6.1879940032958984,750.59076526655679]
[null,30,5.9130568504333496,152.39082896918742,null,30,6.1926155090332031,593.38490302339505]
[null,31,6.1529779434204102,229.16170441915722,null,31,6.5870876312255859,929.7635232008073]
[null,32,6.5664315223693848,403.27281488294381,null,32,5.4364871978759766,1580.0375741020168]
[null,33,6.0929880142211914,1756.9904665366225,null,33,6.2642402648925781,1117.9871115852943]
[null,34,5.9234058856964111,171.23887943578524,null,34,7.0749492645263672,900.87448692286262]
[null,35,6.8402600288391113,308.61686958177194,null,35,5.8689632415771484,629.89937596472521]
[null,36,7.2262163162231445,747.99003843829496,null,36,5.1524152755737305,456.64700218904301]
[null,37,5.1477782726287842,317.80721797250703,null,37,7.844085693359375,693.77424810253387]
[null,38,6.4757986068725586,272.88546492800646,null,38,5.0755958557128906,834.63009063703896]
[null,39,5.8228302001953125,289.65427095597323,null,39,7.1520271301269531,708.88929141493827]
[null,40,5.5327281951904297,1442.7353263544076,null,40,3.7,296.49303071552794]
[null,41,5.8861689567565918,286.38925643783489,null,41,5.3429298400878906,669.57239286628203]
[null,42,5.4169654846191406,259.025896375797,null,42,5.2192134857177734,740.29350716518286]
[null,43,6.6770157814025879,781.40839459980623,null,43,7.6503448486328125,917.43582666432428]
[null,44,6.1196126937866211,148.65602926760084,null,44,5.2002410888671875,517.75666816563853]
[null,45,7.5909309387207031,215.4397066033961,null,45,7.2396450042724609,982.75223918285326]
[null,46,5.0660624504089355,345.67241290946589,null,46,7.6220893859863281,1189.7984314220751]
[null,47,6.3223733901977539,950.40319512483075,null,47,6.6147174835205078,800.08164188347951]
[null,48,6.3834762573242188,657.80090544602729,null,48,7.2707118988037109,1326.701121311916]
[null,49,6.200014591217041,204.50835224943989,null,49,5.7967033386230469,842.0186825149184]
[null,50,7.0554447174072266,1091.0452165949835,null,50,6.3724250793457031,1578.1539120881962]

{"sheet":"Descriptive analysis","index":1,"n_rows":51,"n_cols":5,"rows_kept":51,"cut":false,"hidden":false,"merged":[[5,3,5,4],[13,3,13,4],[22,3,22,4]]}
[]
[]
[]
[null,"Summary Statistics"]
[]
[null,null,null,"Control Group"]
[null,"Statistic",null,"Effect","Cost"]
[]
[null,"Sample Mean"]
[null,"Standard deviation"]
[null,"Standard error"]
[]
[]
[null,null,null,"Treatment Group"]
[null,null,null,"Effect","Cost"]
[]
[null,"Sample Mean"]
[null,"Standard deviation"]
[null,"Standard error"]
[]
[]
[]
[null,null,null,"Difference"]
[null,null,null,"Effect (DE)","Cost (DC)"]
[]
[null,"Sample Mean"]
[null,"Standard error"]
[null,"Lower 95% confidence limit"]
[null,"Upper 95% confidence limit"]
[null,"Bootstrap lower confidence limit"]
[null,"Bootstrap upper confidence limit"]
[]
[]
[null,"Correlation (C0,E0)",null,{"$f":"+CORREL('Raw data'!C6:C55,'Raw data'!D6:D55)","v":8.3940569020244132E-2}]
[null,"Correlation (C1,E1)",null,{"$f":"+CORREL('Raw data'!G6:G55,'Raw data'!H6:H55)","v":0.15490334858581525}]
[null,"Correlation (DC, DE)",null,{"$f":"+(D35*D19*E19+D34*D11*E11)/(D27*E27)","v":{"$error":"#DIV/0!"}}]
[null,"Covariance (DC, DE)",null,{"$f":"+corrdCdE*SEdC*SEdE","v":{"$error":"#DIV/0!"}}]
[]
[]
[]
[null,"ICER:"]
[]
[null,"Confidence limits",null,"Lower ","Upper "]
[null,"Confidence box"]
[null,"Filler's method"]
[null,"Bootstrap"]
[null,"Delta method (Taylor series)"]
[]
[null,"Net benefit (as funtion of l)"]
[null,"(see value of lambda in <Bootstrap>)"]
[null,"Confidence limits (as funtion of l)"]

{"sheet":"Bootstrap","index":3,"n_rows":1011,"n_cols":40,"rows_kept":1011,"cut":false,"hidden":false,"merged":[[8,18,8,19],[8,15,8,16],[8,11,8,12],[8,1,8,3],[8,5,8,7]]}
[null,"Bootstrap Results"]
[]
[null,"The bootstrap resamples:",null,null,null,null,null,null,null,"Bootstrapped means for the:",null,null,null,null,null,null,null,null,null,null,null,null,null,null,null,null,null,"Threshold (l)"]
[null,null,null,null,null,null,null,null,null,null,null,null,null,null,null,null,null,null,null,null,null,null,null,null,null,null,null,"Prob(CE)",null,null,null,null,null,null,null,null,null,null,null,"Prob(CE)"]
[]
[null,null,"Effect","Cost",null,null,"Effect","Cost",null,null,null,"Effect","Cost",null,null,"Effect","Cost",null,"DE","DC"]
[null,"means:",{"$f":"AVERAGE(C12:C62)","v":6.0050201845169067},{"$f":"AVERAGE(D12:D62)","v":637.62994611157274},null,null,{"$f":"AVERAGE(G12:G62)","v":6.1540864753723143},{"$f":"AVERAGE(H12:H62)","v":910.58717553689087},null,null,"means:",{"$f":"AVERAGE(L12:L1011)","v":{"$error":"#DIV/0!"}},{"$f":"AVERAGE(M12:M1011)","v":{"$error":"#DIV/0!"}},null,null,{"$f":"AVERAGE(P12:P1011)","v":{"$error":"#DIV/0!"}},{"$f":"AVERAGE(Q12:Q1011)","v":{"$error":"#DIV/0!"}},null,{"$f":"AVERAGE(S12:S1011)","v":{"$error":"#DIV/0!"}},{"$f":"AVERAGE(T12:T1011)","v":{"$error":"#DIV/0!"}},null,{"$f":"COUNT(V12:V3011)","v":0}]
[null,null,null,null,null,null,null,null,null,null,null,null,null,null,null,null,null,null,null,null,null,null,null,null,null,null,null,null,null,null,null,null,null,"Bootstrapping net benefits"]
[null,"Control Group",null,null,null,"Treatment Group",null,null,null,"Bootstrap ",null,"Control group",null,null,null,"Treatment Group",null,null,"Difference",null,null,"Ratio:",null,"Descriptive statistics for ICER",null,null,null,"Is it cost-effective?",null,null,"Threshold","Prob[CE(l)]",null,"Net benefit",null,"Descriptive statistics for Net Benefit",null,null,null,"Is it cost-effective?"]
[null,"Patient","Effect","Cost",null,"Patient","Effect","Cost",null,"replication",null,"Effect","Cost",null,null,"Effect","Cost",null,"Effect","Cost",null,"(ICER)",null,null,null,null,null,"(ICER vs threshold)",null,null,null,null,null,null,null,null,null,null,null,"(NB>0)"]
[]
[null,{"$f":"+INT(RAND()*50)+1","v":41},{"$f":"+VLOOKUP(B12,control,2,1)","v":5.8861689567565918},{"$f":"+VLOOKUP(B12,control,3,1)","v":286.38925643783489},null,{"$f":"+INT(RAND()*50)+1","v":32},{"$f":"+VLOOKUP(F12,treatment,2,1)","v":5.4364871978759766},{"$f":"+VLOOKUP(F12,treatment,3,1)","v":1580.0375741020168},null,1,null,null,null,null,null,null,null,null,null,null,null,null,null,"Mean",null,null,null,null,null,null,0,0,null,null,null,"Mean"]
[null,{"$f":"+INT(RAND()*50)+1","v":25},{"$f":"+VLOOKUP(B13,control,2,1)","v":5.5747623443603516},{"$f":"+VLOOKUP(B13,control,3,1)","v":917.31304626140559},null,{"$f":"+INT(RAND()*50)+1","v":41},{"$f":"+VLOOKUP(F13,treatment,2,1)","v":5.3429298400878906},{"$f":"+VLOOKUP(F13,treatment,3,1)","v":669.57239286628203},null,{"$f":"J12+1","v":2},null,null,null,null,null,null,null,null,null,null,null,null,null,"Median",null,null,null,null,null,null,50,0,null,null,null,"Median"]
[null,6,5.7750225067138672,375.53297025135629,null,27,5.4845314025878906,860.07427599073446,null,3,null,null,null,null,null,null,null,null,null,null,null,null,null,"2.5th percentile ",null,null,null,null,null,null,100,0,null,null,null,"2.5th percentile "]
[null,16,5.8189141750335693,587.57108928567334,null,17,6.4292945861816406,1316.9243782243216,null,4,null,null,null,null,null,null,null,null,null,null,null,null,null,"97.5th percentile",null,null,null,null,null,null,150,0,null,null,null,"97.5th percentile"]
[null,46,5.0660624504089355,345.67241290946589,null,12,6.2700881958007812,539.87032196858627,null,5,null,null,null,null,null,null,null,null,null,null,null,null,null,"min",null,null,null,null,null,null,200,0,null,null,null,"min"]
[null,24,6.9843482971191406,283.43514522239889,null,16,7.2910556793212891,943.21443444395766,null,6,null,null,null,null,null,null,null,null,null,null,null,null,null,"max",null,null,null,null,null,null,250,0,null,null,null,"max"]
[null,1,5.9092073440551758,801.3622718680034,null,21,6.3634052276611328,958.53329968131061,null,7,null,null,null,null,null,null,null,null,null,null,null,null,null,null,null,null,null,null,null,null,300,0]
[null,41,5.8861689567565918,286.38925643783489,null,3,7.206817626953125,813.71805760112477,null,8,null,null,null,null,null,null,null,null,null,null,null,null,null,null,null,null,null,null,null,null,350,0]
[null,49,6.200014591217041,204.50835224943989,null,21,6.3634052276611328,958.53329968131061,null,9,null,null,null,null,null,null,null,null,null,null,null,null,null,null,null,null,null,null,null,null,400,0]
[null,35,6.8402600288391113,308.61686958177194,null,15,6.3988132476806641,526.98061610927414,null,10,null,null,null,null,null,null,null,null,null,null,null,null,null,"Bin Range","Bin","Frequency",null,null,null,null,450,5.0000000000000001E-3,null,null,null,"Bin Range","Bin","Frequency"]
[null,5,5.1396579742431641,290.89175421539426,null,22,5.4506721496582031,780.97183320400484,null,11,null,null,null,null,null,null,null,null,null,null,null,null,null,-15000,-20000,{"$f":"FREQUENCY(V12:V1011,Y22:Y62)","v":0},null,null,null,null,500,8.9999999999999993E-3,null,null,null,1000,1000,{"$f":"FREQUENCY(AH12:AH1011,AK22:AK62)","v":0}]
[null,27,5.4043004512786865,1151.5451359488291,null,4,7.536651611328125,696.61154195696884,null,12,null,null,null,null,null,null,null,null,null,null,null,null,null,{"$f":"+X22+500","v":-14500},-19000,0,null,null,null,null,550,2.1000000000000001E-2,null,null,null,{"$f":"+AJ22-50","v":950},950,0]
[null,10,6.8750972747802734,682.51740870523099,null,18,6.123560905456543,611.68157179604054,null,13,null,null,null,null,null,null,null,null,null,null,null,null,null,{"$f":"+X23+500","v":-14000},-18000,0,null,null,null,null,600,2.8000000000000001E-2,null,null,null,{"$f":"+AJ23-50","v":900},900,0]
[null,41,5.8861689567565918,286.38925643783489,null,46,7.6220893859863281,1189.7984314220751,null,14,null,null,null,null,null,null,null,null,null,null,null,null,null,-13500,-17000,0,null,null,null,null,650,4.5999999999999999E-2,null,null,null,850,850,0]
[null,50,7.0554447174072266,1091.0452165949835,null,15,6.3988132476806641,526.98061610927414,null,15,null,null,null,null,null,null,null,null,null,null,null,null,null,-13000,-16000,0,null,null,null,null,700,6.2E-2,null,null,null,800,800,0]
[null,48,6.3834762573242188,657.80090544602729,null,1,7.0333442687988281,1321.7631710046285,null,16,null,null,null,null,null,null,null,null,null,null,null,null,null,-12500,-15000,0,null,null,null,null,750,8.4000000000000005E-2,null,null,null,750,750,0]
[null,5,5.1396579742431641,290.89175421539426,null,28,6.3590888977050781,1385.0789583227738,null,17,null,null,null,null,null,null,null,null,null,null,null,null,null,-12000,-14000,0,null,null,null,null,800,0.125,null,null,null,700,700,0]
[null,46,5.0660624504089355,345.67241290946589,null,37,7.844085693359375,693.77424810253387,null,18,null,null,null,null,null,null,null,null,null,null,null,null,null,-11500,-13000,0,null,null,null,null,850,0.157,null,null,null,650,650,0]
[null,48,6.3834762573242188,657.80090544602729,null,38,5.0755958557128906,834.63009063703896,null,19,null,null,null,null,null,null,null,null,null,null,null,null,null,-11000,-12000,0,null,null,null,null,900,0.184,null,null,null,600,600,0]
[null,17,6.6358242034912109,846.23684062252528,null,45,7.2396450042724609,982.75223918285326,null,20,null,null,null,null,null,null,null,null,null,null,null,null,null,-10500,-11000,0,null,null,null,null,950,0.22,null,null,null,550,550,0]
[null,30,5.9130568504333496,152.39082896918742,null,4,7.536651611328125,696.61154195696884,null,21,null,null,null,null,null,null,null,null,null,null,null,null,null,-10000,-10000,0,null,null,null,null,1000,0.253,null,null,null,500,500,0]
[null,7,5.4267308712005615,656.9989527116951,null,35,5.8689632415771484,629.89937596472521,null,22,null,null,null,null,null,null,null,null,null,null,null,null,null,-9500,-9000,0,null,null,null,null,1050,0.28100000000000003,null,null,null,450,450,0]
[null,3,5.8003253936767578,492.46476532726183,null,38,5.0755958557128906,834.63009063703896,null,23,null,null,null,null,null,null,null,null,null,null,null,null,null,-9000,-8000,0,null,null,null,null,1100,0.32500000000000001,null,null,null,400,400,0]
[null,26,7.2112588882446289,1652.9723782441556,null,38,5.0755958557128906,834.63009063703896,null,24,null,null,null,null,null,null,null,null,null,null,null,null,null,-8500,-7000,0,null,null,null,null,1150,0.36,null,null,null,350,350,0]
[null,22,5.1655781269073486,1424.2009704638724,null,35,5.8689632415771484,629.89937596472521,null,25,null,null,null,null,null,null,null,null,null,null,null,null,null,-8000,-6000,0,null,null,null,null,1200,0.39400000000000002,null,null,null,300,300,0]
[null,50,7.0554447174072266,1091.0452165949835,null,7,6.0770378112792969,1457.9516228974996,null,26,null,null,null,null,null,null,null,null,null,null,null,null,null,-7500,-5000,0,null,null,null,null,1250,0.41899999999999998,null,null,null,250,250,0]
[null,21,5.6564874649047852,1016.0583399106364,null,41,5.3429298400878906,669.57239286628203,null,27,null,null,null,null,null,null,null,null,null,null,null,null,null,-7000,-4000,0,null,null,null,null,1300,0.45,null,null,null,200,200,0]
[null,11,7.1636142730712891,1250.6796145320986,null,48,7.2707118988037109,1326.701121311916,null,28,null,null,null,null,null,null,null,null,null,null,null,null,null,-6500,-3000,0,null,null,null,null,1350,0.46800000000000003,null,null,null,150,150,0]
[null,15,5.1845781803131104,769.94172397438251,null,33,6.2642402648925781,1117.9871115852943,null,29,null,null,null,null,null,null,null,null,null,null,null,null,null,-6000,-2000,0,null,null,null,null,1400,0.48899999999999999,null,null,null,100,100,0]
[null,27,5.4043004512786865,1151.5451359488291,null,9,6.3025379180908203,624.30585605431793,null,30,null,null,null,null,null,null,null,null,null,null,null,null,null,-5500,-1000,0,null,null,null,null,1450,0.51300000000000001,null,null,null,50,50,0]
[null,5,5.1396579742431641,290.89175421539426,null,38,5.0755958557128906,834.63009063703896,null,31,null,null,null,null,null,null,null,null,null,null,null,null,null,-5000,0,0,null,null,null,null,1500,0.53500000000000003,null,null,null,0,0,0]
[null,32,6.5664315223693848,403.27281488294381,null,35,5.8689632415771484,629.89937596472521,null,32,null,null,null,null,null,null,null,null,null,null,null,null,null,-4500,1000,0,null,null,null,null,1550,0.54900000000000004,null,null,null,-50,-50,0]
[null,32,6.5664315223693848,403.27281488294381,null,38,5.0755958557128906,834.63009063703896,null,33,null,null,null,null,null,null,null,null,null,null,null,null,null,-4000,2000,0,null,null,null,null,1600,0.56999999999999995,null,null,null,-100,-100,0]
[null,2,5.41554856300354,951.04591984157514,null,50,6.3724250793457031,1578.1539120881962,null,34,null,null,null,null,null,null,null,null,null,null,null,null,null,-3500,3000,0,null,null,null,null,1650,0.58199999999999996,null,null,null,-150,-150,0]
[null,13,7.1907310485839844,365.22443901361385,null,15,6.3988132476806641,526.98061610927414,null,35,null,null,null,null,null,null,null,null,null,null,null,null,null,-3000,4000,0,null,null,null,null,1700,0.59499999999999997,null,null,null,-200,-200,0]
[null,47,6.3223733901977539,950.40319512483075,null,16,7.2910556793212891,943.21443444395766,null,36,null,null,null,null,null,null,null,null,null,null,null,null,null,-2500,5000,0,null,null,null,null,1750,0.61,null,null,null,-250,-250,0]
[null,46,5.0660624504089355,345.67241290946589,null,23,6.9124164581298828,810.16895063084678,null,37,null,null,null,null,null,null,null,null,null,null,null,null,null,-2000,6000,0,null,null,null,null,1800,0.623,null,null,null,-300,-300,0]
[null,24,6.9843482971191406,283.43514522239889,null,17,6.4292945861816406,1316.9243782243216,null,38,null,null,null,null,null,null,null,null,null,null,null,null,null,-1500,7000,0,null,null,null,null,1850,0.63800000000000001,null,null,null,-350,-350,0]
[null,25,5.5747623443603516,917.31304626140559,null,7,6.0770378112792969,1457.9516228974996,null,39,null,null,null,null,null,null,null,null,null,null,null,null,null,-1000,8000,0,null,null,null,null,1900,0.65200000000000002,null,null,null,-400,-400,0]
[null,1,5.9092073440551758,801.3622718680034,null,36,5.1524152755737305,456.64700218904301,null,40,null,null,null,null,null,null,null,null,null,null,null,null,null,-500,9000,0,null,null,null,null,1950,0.66200000000000003,null,null,null,-450,-450,0]
[null,21,5.6564874649047852,1016.0583399106364,null,17,6.4292945861816406,1316.9243782243216,null,41,null,null,null,null,null,null,null,null,null,null,null,null,null,0,10000,0,null,null,null,null,2000,0.67100000000000004,null,null,null,-500,-500,0]
[null,31,6.1529779434204102,229.16170441915722,null,40,3.7,296.49303071552794,null,42,null,null,null,null,null,null,null,null,null,null,null,null,null,500,11000,0,null,null,null,null,2050,0.67800000000000005,null,null,null,-550,-550,0]
[null,28,6.2729048728942871,171.21488558779117,null,42,5.2192134857177734,740.29350716518286,null,43,null,null,null,null,null,null,null,null,null,null,null,null,null,1000,12000,0,null,null,null,null,2100,0.69,null,null,null,-600,-600,0]
[null,48,6.3834762573242188,657.80090544602729,null,17,6.4292945861816406,1316.9243782243216,null,44,null,null,null,null,null,null,null,null,null,null,null,null,null,1500,13000,0,null,null,null,null,2150,0.69799999999999995,null,null,null,-650,-650,0]
[null,46,5.0660624504089355,345.67241290946589,null,48,7.2707118988037109,1326.701121311916,null,45,null,null,null,null,null,null,null,null,null,null,null,null,null,2000,14000,0,null,null,null,null,2200,0.70399999999999996,null,null,null,-700,-700,0]
[null,46,5.0660624504089355,345.67241290946589,null,6,4.8,1700.2076465136977,null,46,null,null,null,null,null,null,null,null,null,null,null,null,null,2500,15000,0,null,null,null,null,2250,0.71199999999999997,null,null,null,-750,-750,0]
[null,2,5.41554856300354,951.04591984157514,null,36,5.1524152755737305,456.64700218904301,null,47,null,null,null,null,null,null,null,null,null,null,null,null,null,3000,16000,0,null,null,null,null,2300,0.72099999999999997,null,null,null,-800,-800,0]
[null,38,6.4757986068725586,272.88546492800646,null,42,5.2192134857177734,740.29350716518286,null,48,null,null,null,null,null,null,null,null,null,null,null,null,null,3500,17000,0,null,null,null,null,2350,0.72499999999999998,null,null,null,-850,-850,0]
[null,26,7.2112588882446289,1652.9723782441556,null,25,6.6843490600585938,638.59889620709805,null,49,null,null,null,null,null,null,null,null,null,null,null,null,null,4000,18000,0,null,null,null,null,2400,0.73299999999999998,null,null,null,-900,-900,0]
[null,34,5.9234058856964111,171.23887943578524,null,30,6.1926155090332031,593.38490302339505,null,50,null,null,null,null,null,null,null,null,null,null,null,null,null,4500,19000,0,null,null,null,null,2450,0.73799999999999999,null,null,null,-950,-950,0]
[null,null,null,null,null,null,null,null,null,51,null,null,null,null,null,null,null,null,null,null,null,null,null,5000,20000,0,null,null,null,null,2500,0.74299999999999999,null,null,null,-1000,-1000,0]
[null,null,null,null,null,null,null,null,null,52,null,null,null,null,null,null,null,null,null,null,null,null,null,null,"More",0,null,null,null,null,2550,0.751,null,null,null,null,"More",0]
[null,null,null,null,null,null,null,null,null,53,null,null,null,null,null,null,null,null,null,null,null,null,null,null,null,null,null,null,null,null,2600,0.75600000000000001]
[null,null,null,null,null,null,null,null,null,54,null,null,null,null,null,null,null,null,null,null,null,null,null,null,null,null,null,null,null,null,2650,0.76]
[null,null,null,null,null,null,null,null,null,55,null,null,null,null,null,null,null,null,null,null,null,null,null,null,null,null,null,null,null,null,2700,0.76300000000000001]
[null,null,null,null,null,null,null,null,null,56,null,null,null,null,null,null,null,null,null,null,null,null,null,null,null,null,null,null,null,null,2750,0.76500000000000001]
[null,null,null,null,null,null,null,null,null,57,null,null,null,null,null,null,null,null,null,null,null,null,null,null,null,null,null,null,null,null,2800,0.77]
[null,null,null,null,null,null,null,null,null,58,null,null,null,null,null,null,null,null,null,null,null,null,null,null,null,null,null,null,null,null,2850,0.77300000000000002]
[null,null,null,null,null,null,null,null,null,59,null,null,null,null,null,null,null,null,null,null,null,null,null,null,null,null,null,null,null,null,2900,0.77800000000000002]
[null,null,null,null,null,null,null,null,null,60,null,null,null,null,null,null,null,null,null,null,null,null,null,null,null,null,null,null,null,null,2950,0.78]
[null,null,null,null,null,null,null,null,null,61,null,null,null,null,null,null,null,null,null,null,null,null,null,null,null,null,null,null,null,null,3000,0.78400000000000003]
[null,null,null,null,null,null,null,null,null,62,null,null,null,null,null,null,null,null,null,null,null,null,null,null,null,null,null,null,null,null,3050,0.78900000000000003]
[null,null,null,null,null,null,null,null,null,63,null,null,null,null,null,null,null,null,null,null,null,null,null,null,null,null,null,null,null,null,3100,0.79700000000000004]
[null,null,null,null,null,null,null,null,null,64,null,null,null,null,null,null,null,null,null,null,null,null,null,null,null,null,null,null,null,null,3150,0.8]
[null,null,null,null,null,null,null,null,null,65,null,null,null,null,null,null,null,null,null,null,null,null,null,null,null,null,null,null,null,null,3200,0.80100000000000005]
[null,null,null,null,null,null,null,null,null,{"$f":"J76+1","v":66},null,null,null,null,null,null,null,null,null,null,null,null,null,null,null,null,null,null,null,null,3250,0.80400000000000005]
[null,null,null,null,null,null,null,null,null,67,null,null,null,null,null,null,null,null,null,null,null,null,null,null,null,null,null,null,null,null,3300,0.80900000000000005]
[null,null,null,null,null,null,null,null,null,68,null,null,null,null,null,null,null,null,null,null,null,null,null,null,null,null,null,null,null,null,3350,0.81100000000000005]
[null,null,null,null,null,null,null,null,null,69,null,null,null,null,null,null,null,null,null,null,null,null,null,null,null,null,null,null,null,null,3400,0.81399999999999995]
[null,null,null,null,null,null,null,null,null,70,null,null,null,null,null,null,null,null,null,null,null,null,null,null,null,null,null,null,null,null,3450,0.81799999999999995]
[null,null,null,null,null,null,null,null,null,71,null,null,null,null,null,null,null,null,null,null,null,null,null,null,null,null,null,null,null,null,3500,0.81899999999999995]
[null,null,null,null,null,null,null,null,null,72,null,null,null,null,null,null,null,null,null,null,null,null,null,null,null,null,null,null,null,null,3550,0.82199999999999995]
[null,null,null,null,null,null,null,null,null,73,null,null,null,null,null,null,null,null,null,null,null,null,null,null,null,null,null,null,null,null,3600,0.82599999999999996]
[null,null,null,null,null,null,null,null,null,74,null,null,null,null,null,null,null,null,null,null,null,null,null,null,null,null,null,null,null,null,3650,0.83299999999999996]
[null,null,null,null,null,null,null,null,null,75,null,null,null,null,null,null,null,null,null,null,null,null,null,null,null,null,null,null,null,null,3700,0.83299999999999996]
[null,null,null,null,null,null,null,null,null,76,null,null,null,null,null,null,null,null,null,null,null,null,null,null,null,null,null,null,null,null,3750,0.83699999999999997]
[null,null,null,null,null,null,null,null,null,77,null,null,null,null,null,null,null,null,null,null,null,null,null,null,null,null,null,null,null,null,3800,0.83699999999999997]
[null,null,null,null,null,null,null,null,null,78,null,null,null,null,null,null,null,null,null,null,null,null,null,null,null,null,null,null,null,null,3850,0.83799999999999997]
[null,null,null,null,null,null,null,null,null,79,null,null,null,null,null,null,null,null,null,null,null,null,null,null,null,null,null,null,null,null,3900,0.84]
[null,null,null,null,null,null,null,null,null,80,null,null,null,null,null,null,null,null,null,null,null,null,null,null,null,null,null,null,null,null,3950,0.84199999999999997]
[null,null,null,null,null,null,null,null,null,81,null,null,null,null,null,null,null,null,null,null,null,null,null,null,null,null,null,null,null,null,4000,0.84499999999999997]
[null,null,null,null,null,null,null,null,null,82,null,null,null,null,null,null,null,null,null,null,null,null,null,null,null,null,null,null,null,null,4050,0.84799999999999998]
[null,null,null,null,null,null,null,null,null,83,null,null,null,null,null,null,null,null,null,null,null,null,null,null,null,null,null,null,null,null,4100,0.84899999999999998]
[null,null,null,null,null,null,null,null,null,84,null,null,null,null,null,null,null,null,null,null,null,null,null,null,null,null,null,null,null,null,4150,0.85]
[null,null,null,null,null,null,null,null,null,85,null,null,null,null,null,null,null,null,null,null,null,null,null,null,null,null,null,null,null,null,4200,0.85299999999999998]
[null,null,null,null,null,null,null,null,null,86,null,null,null,null,null,null,null,null,null,null,null,null,null,null,null,null,null,null,null,null,4250,0.85299999999999998]
[null,null,null,null,null,null,null,null,null,87,null,null,null,null,null,null,null,null,null,null,null,null,null,null,null,null,null,null,null,null,4300,0.85499999999999998]
[null,null,null,null,null,null,null,null,null,88,null,null,null,null,null,null,null,null,null,null,null,null,null,null,null,null,null,null,null,null,4350,0.85599999999999998]
[null,null,null,null,null,null,null,null,null,89,null,null,null,null,null,null,null,null,null,null,null,null,null,null,null,null,null,null,null,null,4400,0.85599999999999998]
[null,null,null,null,null,null,null,null,null,90,null,null,null,null,null,null,null,null,null,null,null,null,null,null,null,null,null,null,null,null,4450,0.85699999999999998]
[null,null,null,null,null,null,null,null,null,91,null,null,null,null,null,null,null,null,null,null,null,null,null,null,null,null,null,null,null,null,4500,0.85899999999999999]
[null,null,null,null,null,null,null,null,null,92,null,null,null,null,null,null,null,null,null,null,null,null,null,null,null,null,null,null,null,null,4550,0.86]
[null,null,null,null,null,null,null,null,null,93,null,null,null,null,null,null,null,null,null,null,null,null,null,null,null,null,null,null,null,null,4600,0.86199999999999999]
[null,null,null,null,null,null,null,null,null,94,null,null,null,null,null,null,null,null,null,null,null,null,null,null,null,null,null,null,null,null,4650,0.86299999999999999]
[null,null,null,null,null,null,null,null,null,95,null,null,null,null,null,null,null,null,null,null,null,null,null,null,null,null,null,null,null,null,4700,0.86299999999999999]
[null,null,null,null,null,null,null,null,null,96,null,null,null,null,null,null,null,null,null,null,null,null,null,null,null,null,null,null,null,null,4750,0.86299999999999999]
[null,null,null,null,null,null,null,null,null,97,null,null,null,null,null,null,null,null,null,null,null,null,null,null,null,null,null,null,null,null,4800,0.86499999999999999]
[null,null,null,null,null,null,null,null,null,98,null,null,null,null,null,null,null,null,null,null,null,null,null,null,null,null,null,null,null,null,4850,0.86699999999999999]
[null,null,null,null,null,null,null,null,null,99,null,null,null,null,null,null,null,null,null,null,null,null,null,null,null,null,null,null,null,null,4900,0.86699999999999999]
[null,null,null,null,null,null,null,null,null,100,null,null,null,null,null,null,null,null,null,null,null,null,null,null,null,null,null,null,null,null,4950,0.86699999999999999]
[null,null,null,null,null,null,null,null,null,101,null,null,null,null,null,null,null,null,null,null,null,null,null,null,null,null,null,null,null,null,5000,0.86799999999999999]
[null,null,null,null,null,null,null,null,null,102]
[null,null,null,null,null,null,null,null,null,103]
[null,null,null,null,null,null,null,null,null,104]
[null,null,null,null,null,null,null,null,null,105]
[null,null,null,null,null,null,null,null,null,106]
[null,null,null,null,null,null,null,null,null,107]
[null,null,null,null,null,null,null,null,null,108]
[null,null,null,null,null,null,null,null,null,109]
[null,null,null,null,null,null,null,null,null,110]
[null,null,null,null,null,null,null,null,null,111]
[null,null,null,null,null,null,null,null,null,112]
[null,null,null,null,null,null,null,null,null,113]
[null,null,null,null,null,null,null,null,null,114]
[null,null,null,null,null,null,null,null,null,115]
[null,null,null,null,null,null,null,null,null,116]
[null,null,null,null,null,null,null,null,null,117]
[null,null,null,null,null,null,null,null,null,118]
[null,null,null,null,null,null,null,null,null,119]
[null,null,null,null,null,null,null,null,null,120]
[null,null,null,null,null,null,null,null,null,121]
[null,null,null,null,null,null,null,null,null,122]
[null,null,null,null,null,null,null,null,null,123]
[null,null,null,null,null,null,null,null,null,124]
[null,null,null,null,null,null,null,null,null,125]
[null,null,null,null,null,null,null,null,null,126]
[null,null,null,null,null,null,null,null,null,127]
[null,null,null,null,null,null,null,null,null,128]
[null,null,null,null,null,null,null,null,null,129]
[null,null,null,null,null,null,null,null,null,{"$f":"J140+1","v":130}]
[null,null,null,null,null,null,null,null,null,131]
[null,null,null,null,null,null,null,null,null,132]
[null,null,null,null,null,null,null,null,null,133]
[null,null,null,null,null,null,null,null,null,134]
[null,null,null,null,null,null,null,null,null,135]
[null,null,null,null,null,null,null,null,null,136]
[null,null,null,null,null,null,null,null,null,137]
[null,null,null,null,null,null,null,null,null,138]
[null,null,null,null,null,null,null,null,null,139]
[null,null,null,null,null,null,null,null,null,140]
[null,null,null,null,null,null,null,null,null,141]
[null,null,null,null,null,null,null,null,null,142]
[null,null,null,null,null,null,null,null,null,143]
[null,null,null,null,null,null,null,null,null,144]
[null,null,null,null,null,null,null,null,null,145]
[null,null,null,null,null,null,null,null,null,146]
[null,null,null,null,null,null,null,null,null,147]
[null,null,null,null,null,null,null,null,null,148]
[null,null,null,null,null,null,null,null,null,149]
[null,null,null,null,null,null,null,null,null,150]
[null,null,null,null,null,null,null,null,null,151]
[null,null,null,null,null,null,null,null,null,152]
[null,null,null,null,null,null,null,null,null,153]
[null,null,null,null,null,null,null,null,null,154]
[null,null,null,null,null,null,null,null,null,155]
[null,null,null,null,null,null,null,null,null,156]
[null,null,null,null,null,null,null,null,null,157]
[null,null,null,null,null,null,null,null,null,158]
[null,null,null,null,null,null,null,null,null,159]
[null,null,null,null,null,null,null,null,null,160]
[null,null,null,null,null,null,null,null,null,161]
[null,null,null,null,null,null,null,null,null,162]
[null,null,null,null,null,null,null,null,null,163]
[null,null,null,null,null,null,null,null,null,164]
[null,null,null,null,null,null,null,null,null,165]
[null,null,null,null,null,null,null,null,null,166]
[null,null,null,null,null,null,null,null,null,167]
[null,null,null,null,null,null,null,null,null,168]
[null,null,null,null,null,null,null,null,null,169]
[null,null,null,null,null,null,null,null,null,170]
[null,null,null,null,null,null,null,null,null,171]
[null,null,null,null,null,null,null,null,null,172]
[null,null,null,null,null,null,null,null,null,173]
[null,null,null,null,null,null,null,null,null,174]
[null,null,null,null,null,null,null,null,null,175]
[null,null,null,null,null,null,null,null,null,176]
[null,null,null,null,null,null,null,null,null,177]
[null,null,null,null,null,null,null,null,null,178]
[null,null,null,null,null,null,null,null,null,179]
[null,null,null,null,null,null,null,null,null,180]
[null,null,null,null,null,null,null,null,null,181]
[null,null,null,null,null,null,null,null,null,182]
[null,null,null,null,null,null,null,null,null,183]
[null,null,null,null,null,null,null,null,null,184]
[null,null,null,null,null,null,null,null,null,185]
[null,null,null,null,null,null,null,null,null,186]
[null,null,null,null,null,null,null,null,null,187]
[null,null,null,null,null,null,null,null,null,188]
[null,null,null,null,null,null,null,null,null,189]
[null,null,null,null,null,null,null,null,null,190]
[null,null,null,null,null,null,null,null,null,191]
[null,null,null,null,null,null,null,null,null,192]
[null,null,null,null,null,null,null,null,null,193]
[null,null,null,null,null,null,null,null,null,{"$f":"J204+1","v":194}]
[null,null,null,null,null,null,null,null,null,195]
[null,null,null,null,null,null,null,null,null,196]
[null,null,null,null,null,null,null,null,null,197]
[null,null,null,null,null,null,null,null,null,198]
[null,null,null,null,null,null,null,null,null,199]
[null,null,null,null,null,null,null,null,null,200]
[null,null,null,null,null,null,null,null,null,201]
[null,null,null,null,null,null,null,null,null,202]
[null,null,null,null,null,null,null,null,null,203]
[null,null,null,null,null,null,null,null,null,204]
[null,null,null,null,null,null,null,null,null,205]
[null,null,null,null,null,null,null,null,null,206]
[null,null,null,null,null,null,null,null,null,207]
[null,null,null,null,null,null,null,null,null,208]
[null,null,null,null,null,null,null,null,null,209]
[null,null,null,null,null,null,null,null,null,210]
[null,null,null,null,null,null,null,null,null,211]
[null,null,null,null,null,null,null,null,null,212]
[null,null,null,null,null,null,null,null,null,213]
[null,null,null,null,null,null,null,null,null,214]
[null,null,null,null,null,null,null,null,null,215]
[null,null,null,null,null,null,null,null,null,216]
[null,null,null,null,null,null,null,null,null,217]
[null,null,null,null,null,null,null,null,null,218]
[null,null,null,null,null,null,null,null,null,219]
[null,null,null,null,null,null,null,null,null,220]
[null,null,null,null,null,null,null,null,null,221]
[null,null,null,null,null,null,null,null,null,222]
[null,null,null,null,null,null,null,null,null,223]
[null,null,null,null,null,null,null,null,null,224]
[null,null,null,null,null,null,null,null,null,225]
[null,null,null,null,null,null,null,null,null,226]
[null,null,null,null,null,null,null,null,null,227]
[null,null,null,null,null,null,null,null,null,228]
[null,null,null,null,null,null,null,null,null,229]
[null,null,null,null,null,null,null,null,null,230]
[null,null,null,null,null,null,null,null,null,231]
[null,null,null,null,null,null,null,null,null,232]
[null,null,null,null,null,null,null,null,null,233]
[null,null,null,null,null,null,null,null,null,234]
[null,null,null,null,null,null,null,null,null,235]
[null,null,null,null,null,null,null,null,null,236]
[null,null,null,null,null,null,null,null,null,237]
[null,null,null,null,null,null,null,null,null,238]
[null,null,null,null,null,null,null,null,null,239]
[null,null,null,null,null,null,null,null,null,240]
[null,null,null,null,null,null,null,null,null,241]
[null,null,null,null,null,null,null,null,null,242]
[null,null,null,null,null,null,null,null,null,243]
[null,null,null,null,null,null,null,null,null,244]
[null,null,null,null,null,null,null,null,null,245]
[null,null,null,null,null,null,null,null,null,246]
[null,null,null,null,null,null,null,null,null,247]
[null,null,null,null,null,null,null,null,null,248]
[null,null,null,null,null,null,null,null,null,249]
[null,null,null,null,null,null,null,null,null,250]
[null,null,null,null,null,null,null,null,null,251]
[null,null,null,null,null,null,null,null,null,252]
[null,null,null,null,null,null,null,null,null,253]
[null,null,null,null,null,null,null,null,null,254]
[null,null,null,null,null,null,null,null,null,255]
[null,null,null,null,null,null,null,null,null,256]
[null,null,null,null,null,null,null,null,null,257]
[null,null,null,null,null,null,null,null,null,{"$f":"J268+1","v":258}]
[null,null,null,null,null,null,null,null,null,259]
[null,null,null,null,null,null,null,null,null,260]
[null,null,null,null,null,null,null,null,null,261]
[null,null,null,null,null,null,null,null,null,262]
[null,null,null,null,null,null,null,null,null,263]
[null,null,null,null,null,null,null,null,null,264]
[null,null,null,null,null,null,null,null,null,265]
[null,null,null,null,null,null,null,null,null,266]
[null,null,null,null,null,null,null,null,null,267]
[null,null,null,null,null,null,null,null,null,268]
[null,null,null,null,null,null,null,null,null,269]
[null,null,null,null,null,null,null,null,null,270]
[null,null,null,null,null,null,null,null,null,271]
[null,null,null,null,null,null,null,null,null,272]
[null,null,null,null,null,null,null,null,null,273]
[null,null,null,null,null,null,null,null,null,274]
[null,null,null,null,null,null,null,null,null,275]
[null,null,null,null,null,null,null,null,null,276]
[null,null,null,null,null,null,null,null,null,277]
[null,null,null,null,null,null,null,null,null,278]
[null,null,null,null,null,null,null,null,null,279]
[null,null,null,null,null,null,null,null,null,280]
[null,null,null,null,null,null,null,null,null,281]
[null,null,null,null,null,null,null,null,null,282]
[null,null,null,null,null,null,null,null,null,283]
[null,null,null,null,null,null,null,null,null,284]
[null,null,null,null,null,null,null,null,null,285]
[null,null,null,null,null,null,null,null,null,286]
[null,null,null,null,null,null,null,null,null,287]
[null,null,null,null,null,null,null,null,null,288]
[null,null,null,null,null,null,null,null,null,289]
[null,null,null,null,null,null,null,null,null,290]
[null,null,null,null,null,null,null,null,null,291]
[null,null,null,null,null,null,null,null,null,292]
[null,null,null,null,null,null,null,null,null,293]
[null,null,null,null,null,null,null,null,null,294]
[null,null,null,null,null,null,null,null,null,295]
[null,null,null,null,null,null,null,null,null,296]
[null,null,null,null,null,null,null,null,null,297]
[null,null,null,null,null,null,null,null,null,298]
[null,null,null,null,null,null,null,null,null,299]
[null,null,null,null,null,null,null,null,null,300]
[null,null,null,null,null,null,null,null,null,301]
[null,null,null,null,null,null,null,null,null,302]
[null,null,null,null,null,null,null,null,null,303]
[null,null,null,null,null,null,null,null,null,304]
[null,null,null,null,null,null,null,null,null,305]
[null,null,null,null,null,null,null,null,null,306]
[null,null,null,null,null,null,null,null,null,307]
[null,null,null,null,null,null,null,null,null,308]
[null,null,null,null,null,null,null,null,null,309]
[null,null,null,null,null,null,null,null,null,310]
[null,null,null,null,null,null,null,null,null,311]
[null,null,null,null,null,null,null,null,null,312]
[null,null,null,null,null,null,null,null,null,313]
[null,null,null,null,null,null,null,null,null,314]
[null,null,null,null,null,null,null,null,null,315]
[null,null,null,null,null,null,null,null,null,316]
[null,null,null,null,null,null,null,null,null,317]
[null,null,null,null,null,null,null,null,null,318]
[null,null,null,null,null,null,null,null,null,319]
[null,null,null,null,null,null,null,null,null,320]
[null,null,null,null,null,null,null,null,null,321]
[null,null,null,null,null,null,null,null,null,{"$f":"J332+1","v":322}]
[null,null,null,null,null,null,null,null,null,323]
[null,null,null,null,null,null,null,null,null,324]
[null,null,null,null,null,null,null,null,null,325]
[null,null,null,null,null,null,null,null,null,326]
[null,null,null,null,null,null,null,null,null,327]
[null,null,null,null,null,null,null,null,null,328]
[null,null,null,null,null,null,null,null,null,329]
[null,null,null,null,null,null,null,null,null,330]
[null,null,null,null,null,null,null,null,null,331]
[null,null,null,null,null,null,null,null,null,332]
[null,null,null,null,null,null,null,null,null,333]
[null,null,null,null,null,null,null,null,null,334]
[null,null,null,null,null,null,null,null,null,335]
[null,null,null,null,null,null,null,null,null,336]
[null,null,null,null,null,null,null,null,null,337]
[null,null,null,null,null,null,null,null,null,338]
[null,null,null,null,null,null,null,null,null,339]
[null,null,null,null,null,null,null,null,null,340]
[null,null,null,null,null,null,null,null,null,341]
[null,null,null,null,null,null,null,null,null,342]
[null,null,null,null,null,null,null,null,null,343]
[null,null,null,null,null,null,null,null,null,344]
[null,null,null,null,null,null,null,null,null,345]
[null,null,null,null,null,null,null,null,null,346]
[null,null,null,null,null,null,null,null,null,347]
[null,null,null,null,null,null,null,null,null,348]
[null,null,null,null,null,null,null,null,null,349]
[null,null,null,null,null,null,null,null,null,350]
[null,null,null,null,null,null,null,null,null,351]
[null,null,null,null,null,null,null,null,null,352]
[null,null,null,null,null,null,null,null,null,353]
[null,null,null,null,null,null,null,null,null,354]
[null,null,null,null,null,null,null,null,null,355]
[null,null,null,null,null,null,null,null,null,356]
[null,null,null,null,null,null,null,null,null,357]
[null,null,null,null,null,null,null,null,null,358]
[null,null,null,null,null,null,null,null,null,359]
[null,null,null,null,null,null,null,null,null,360]
[null,null,null,null,null,null,null,null,null,361]
[null,null,null,null,null,null,null,null,null,362]
[null,null,null,null,null,null,null,null,null,363]
[null,null,null,null,null,null,null,null,null,364]
[null,null,null,null,null,null,null,null,null,365]
[null,null,null,null,null,null,null,null,null,366]
[null,null,null,null,null,null,null,null,null,367]
[null,null,null,null,null,null,null,null,null,368]
[null,null,null,null,null,null,null,null,null,369]
[null,null,null,null,null,null,null,null,null,370]
[null,null,null,null,null,null,null,null,null,371]
[null,null,null,null,null,null,null,null,null,372]
[null,null,null,null,null,null,null,null,null,373]
[null,null,null,null,null,null,null,null,null,374]
[null,null,null,null,null,null,null,null,null,375]
[null,null,null,null,null,null,null,null,null,376]
[null,null,null,null,null,null,null,null,null,377]
[null,null,null,null,null,null,null,null,null,378]
[null,null,null,null,null,null,null,null,null,379]
[null,null,null,null,null,null,null,null,null,380]
[null,null,null,null,null,null,null,null,null,381]
[null,null,null,null,null,null,null,null,null,382]
[null,null,null,null,null,null,null,null,null,383]
[null,null,null,null,null,null,null,null,null,384]
[null,null,null,null,null,null,null,null,null,385]
[null,null,null,null,null,null,null,null,null,{"$f":"J396+1","v":386}]
[null,null,null,null,null,null,null,null,null,387]
[null,null,null,null,null,null,null,null,null,388]
[null,null,null,null,null,null,null,null,null,389]
[null,null,null,null,null,null,null,null,null,390]
[null,null,null,null,null,null,null,null,null,391]
[null,null,null,null,null,null,null,null,null,392]
[null,null,null,null,null,null,null,null,null,393]
[null,null,null,null,null,null,null,null,null,394]
[null,null,null,null,null,null,null,null,null,395]
[null,null,null,null,null,null,null,null,null,396]
[null,null,null,null,null,null,null,null,null,397]
[null,null,null,null,null,null,null,null,null,398]
[null,null,null,null,null,null,null,null,null,399]
[null,null,null,null,null,null,null,null,null,400]
[null,null,null,null,null,null,null,null,null,401]
[null,null,null,null,null,null,null,null,null,402]
[null,null,null,null,null,null,null,null,null,403]
[null,null,null,null,null,null,null,null,null,404]
[null,null,null,null,null,null,null,null,null,405]
[null,null,null,null,null,null,null,null,null,406]
[null,null,null,null,null,null,null,null,null,407]
[null,null,null,null,null,null,null,null,null,408]
[null,null,null,null,null,null,null,null,null,409]
[null,null,null,null,null,null,null,null,null,410]
[null,null,null,null,null,null,null,null,null,411]
[null,null,null,null,null,null,null,null,null,412]
[null,null,null,null,null,null,null,null,null,413]
[null,null,null,null,null,null,null,null,null,414]
[null,null,null,null,null,null,null,null,null,415]
[null,null,null,null,null,null,null,null,null,416]
[null,null,null,null,null,null,null,null,null,417]
[null,null,null,null,null,null,null,null,null,418]
[null,null,null,null,null,null,null,null,null,419]
[null,null,null,null,null,null,null,null,null,420]
[null,null,null,null,null,null,null,null,null,421]
[null,null,null,null,null,null,null,null,null,422]
[null,null,null,null,null,null,null,null,null,423]
[null,null,null,null,null,null,null,null,null,424]
[null,null,null,null,null,null,null,null,null,425]
[null,null,null,null,null,null,null,null,null,426]
[null,null,null,null,null,null,null,null,null,427]
[null,null,null,null,null,null,null,null,null,428]
[null,null,null,null,null,null,null,null,null,429]
[null,null,null,null,null,null,null,null,null,430]
[null,null,null,null,null,null,null,null,null,431]
[null,null,null,null,null,null,null,null,null,432]
[null,null,null,null,null,null,null,null,null,433]
[null,null,null,null,null,null,null,null,null,434]
[null,null,null,null,null,null,null,null,null,435]
[null,null,null,null,null,null,null,null,null,436]
[null,null,null,null,null,null,null,null,null,437]
[null,null,null,null,null,null,null,null,null,438]
[null,null,null,null,null,null,null,null,null,439]
[null,null,null,null,null,null,null,null,null,440]
[null,null,null,null,null,null,null,null,null,441]
[null,null,null,null,null,null,null,null,null,442]
[null,null,null,null,null,null,null,null,null,443]
[null,null,null,null,null,null,null,null,null,444]
[null,null,null,null,null,null,null,null,null,445]
[null,null,null,null,null,null,null,null,null,446]
[null,null,null,null,null,null,null,null,null,447]
[null,null,null,null,null,null,null,null,null,448]
[null,null,null,null,null,null,null,null,null,449]
[null,null,null,null,null,null,null,null,null,{"$f":"J460+1","v":450}]
[null,null,null,null,null,null,null,null,null,451]
[null,null,null,null,null,null,null,null,null,452]
[null,null,null,null,null,null,null,null,null,453]
[null,null,null,null,null,null,null,null,null,454]
[null,null,null,null,null,null,null,null,null,455]
[null,null,null,null,null,null,null,null,null,456]
[null,null,null,null,null,null,null,null,null,457]
[null,null,null,null,null,null,null,null,null,458]
[null,null,null,null,null,null,null,null,null,459]
[null,null,null,null,null,null,null,null,null,460]
[null,null,null,null,null,null,null,null,null,461]
[null,null,null,null,null,null,null,null,null,462]
[null,null,null,null,null,null,null,null,null,463]
[null,null,null,null,null,null,null,null,null,464]
[null,null,null,null,null,null,null,null,null,465]
[null,null,null,null,null,null,null,null,null,466]
[null,null,null,null,null,null,null,null,null,467]
[null,null,null,null,null,null,null,null,null,468]
[null,null,null,null,null,null,null,null,null,469]
[null,null,null,null,null,null,null,null,null,470]
[null,null,null,null,null,null,null,null,null,471]
[null,null,null,null,null,null,null,null,null,472]
[null,null,null,null,null,null,null,null,null,473]
[null,null,null,null,null,null,null,null,null,474]
[null,null,null,null,null,null,null,null,null,475]
[null,null,null,null,null,null,null,null,null,476]
[null,null,null,null,null,null,null,null,null,477]
[null,null,null,null,null,null,null,null,null,478]
[null,null,null,null,null,null,null,null,null,479]
[null,null,null,null,null,null,null,null,null,480]
[null,null,null,null,null,null,null,null,null,481]
[null,null,null,null,null,null,null,null,null,482]
[null,null,null,null,null,null,null,null,null,483]
[null,null,null,null,null,null,null,null,null,484]
[null,null,null,null,null,null,null,null,null,485]
[null,null,null,null,null,null,null,null,null,486]
[null,null,null,null,null,null,null,null,null,487]
[null,null,null,null,null,null,null,null,null,488]
[null,null,null,null,null,null,null,null,null,489]
[null,null,null,null,null,null,null,null,null,490]
[null,null,null,null,null,null,null,null,null,491]
[null,null,null,null,null,null,null,null,null,492]
[null,null,null,null,null,null,null,null,null,493]
[null,null,null,null,null,null,null,null,null,494]
[null,null,null,null,null,null,null,null,null,495]
[null,null,null,null,null,null,null,null,null,496]
[null,null,null,null,null,null,null,null,null,497]
[null,null,null,null,null,null,null,null,null,498]
[null,null,null,null,null,null,null,null,null,499]
[null,null,null,null,null,null,null,null,null,500]
[null,null,null,null,null,null,null,null,null,501]
[null,null,null,null,null,null,null,null,null,502]
[null,null,null,null,null,null,null,null,null,503]
[null,null,null,null,null,null,null,null,null,504]
[null,null,null,null,null,null,null,null,null,505]
[null,null,null,null,null,null,null,null,null,506]
[null,null,null,null,null,null,null,null,null,507]
[null,null,null,null,null,null,null,null,null,508]
[null,null,null,null,null,null,null,null,null,509]
[null,null,null,null,null,null,null,null,null,510]
[null,null,null,null,null,null,null,null,null,511]
[null,null,null,null,null,null,null,null,null,512]
[null,null,null,null,null,null,null,null,null,513]
[null,null,null,null,null,null,null,null,null,{"$f":"J524+1","v":514}]
[null,null,null,null,null,null,null,null,null,515]
[null,null,null,null,null,null,null,null,null,516]
[null,null,null,null,null,null,null,null,null,517]
[null,null,null,null,null,null,null,null,null,518]
[null,null,null,null,null,null,null,null,null,519]
[null,null,null,null,null,null,null,null,null,520]
[null,null,null,null,null,null,null,null,null,521]
[null,null,null,null,null,null,null,null,null,522]
[null,null,null,null,null,null,null,null,null,523]
[null,null,null,null,null,null,null,null,null,524]
[null,null,null,null,null,null,null,null,null,525]
[null,null,null,null,null,null,null,null,null,526]
[null,null,null,null,null,null,null,null,null,527]
[null,null,null,null,null,null,null,null,null,528]
[null,null,null,null,null,null,null,null,null,529]
[null,null,null,null,null,null,null,null,null,530]
[null,null,null,null,null,null,null,null,null,531]
[null,null,null,null,null,null,null,null,null,532]
[null,null,null,null,null,null,null,null,null,533]
[null,null,null,null,null,null,null,null,null,534]
[null,null,null,null,null,null,null,null,null,535]
[null,null,null,null,null,null,null,null,null,536]
[null,null,null,null,null,null,null,null,null,537]
[null,null,null,null,null,null,null,null,null,538]
[null,null,null,null,null,null,null,null,null,539]
[null,null,null,null,null,null,null,null,null,540]
[null,null,null,null,null,null,null,null,null,541]
[null,null,null,null,null,null,null,null,null,542]
[null,null,null,null,null,null,null,null,null,543]
[null,null,null,null,null,null,null,null,null,544]
[null,null,null,null,null,null,null,null,null,545]
[null,null,null,null,null,null,null,null,null,546]
[null,null,null,null,null,null,null,null,null,547]
[null,null,null,null,null,null,null,null,null,548]
[null,null,null,null,null,null,null,null,null,549]
[null,null,null,null,null,null,null,null,null,550]
[null,null,null,null,null,null,null,null,null,551]
[null,null,null,null,null,null,null,null,null,552]
[null,null,null,null,null,null,null,null,null,553]
[null,null,null,null,null,null,null,null,null,554]
[null,null,null,null,null,null,null,null,null,555]
[null,null,null,null,null,null,null,null,null,556]
[null,null,null,null,null,null,null,null,null,557]
[null,null,null,null,null,null,null,null,null,558]
[null,null,null,null,null,null,null,null,null,559]
[null,null,null,null,null,null,null,null,null,560]
[null,null,null,null,null,null,null,null,null,561]
[null,null,null,null,null,null,null,null,null,562]
[null,null,null,null,null,null,null,null,null,563]
[null,null,null,null,null,null,null,null,null,564]
[null,null,null,null,null,null,null,null,null,565]
[null,null,null,null,null,null,null,null,null,566]
[null,null,null,null,null,null,null,null,null,567]
[null,null,null,null,null,null,null,null,null,568]
[null,null,null,null,null,null,null,null,null,569]
[null,null,null,null,null,null,null,null,null,570]
[null,null,null,null,null,null,null,null,null,571]
[null,null,null,null,null,null,null,null,null,572]
[null,null,null,null,null,null,null,null,null,573]
[null,null,null,null,null,null,null,null,null,574]
[null,null,null,null,null,null,null,null,null,575]
[null,null,null,null,null,null,null,null,null,576]
[null,null,null,null,null,null,null,null,null,577]
[null,null,null,null,null,null,null,null,null,{"$f":"J588+1","v":578}]
[null,null,null,null,null,null,null,null,null,579]
[null,null,null,null,null,null,null,null,null,580]
[null,null,null,null,null,null,null,null,null,581]
[null,null,null,null,null,null,null,null,null,582]
[null,null,null,null,null,null,null,null,null,583]
[null,null,null,null,null,null,null,null,null,584]
[null,null,null,null,null,null,null,null,null,585]
[null,null,null,null,null,null,null,null,null,586]
[null,null,null,null,null,null,null,null,null,587]
[null,null,null,null,null,null,null,null,null,588]
[null,null,null,null,null,null,null,null,null,589]
[null,null,null,null,null,null,null,null,null,590]
[null,null,null,null,null,null,null,null,null,591]
[null,null,null,null,null,null,null,null,null,592]
[null,null,null,null,null,null,null,null,null,593]
[null,null,null,null,null,null,null,null,null,594]
[null,null,null,null,null,null,null,null,null,595]
[null,null,null,null,null,null,null,null,null,596]
[null,null,null,null,null,null,null,null,null,597]
[null,null,null,null,null,null,null,null,null,598]
[null,null,null,null,null,null,null,null,null,599]
[null,null,null,null,null,null,null,null,null,600]
[null,null,null,null,null,null,null,null,null,601]
[null,null,null,null,null,null,null,null,null,602]
[null,null,null,null,null,null,null,null,null,603]
[null,null,null,null,null,null,null,null,null,604]
[null,null,null,null,null,null,null,null,null,605]
[null,null,null,null,null,null,null,null,null,606]
[null,null,null,null,null,null,null,null,null,607]
[null,null,null,null,null,null,null,null,null,608]
[null,null,null,null,null,null,null,null,null,609]
[null,null,null,null,null,null,null,null,null,610]
[null,null,null,null,null,null,null,null,null,611]
[null,null,null,null,null,null,null,null,null,612]
[null,null,null,null,null,null,null,null,null,613]
[null,null,null,null,null,null,null,null,null,614]
[null,null,null,null,null,null,null,null,null,615]
[null,null,null,null,null,null,null,null,null,616]
[null,null,null,null,null,null,null,null,null,617]
[null,null,null,null,null,null,null,null,null,618]
[null,null,null,null,null,null,null,null,null,619]
[null,null,null,null,null,null,null,null,null,620]
[null,null,null,null,null,null,null,null,null,621]
[null,null,null,null,null,null,null,null,null,622]
[null,null,null,null,null,null,null,null,null,623]
[null,null,null,null,null,null,null,null,null,624]
[null,null,null,null,null,null,null,null,null,625]
[null,null,null,null,null,null,null,null,null,626]
[null,null,null,null,null,null,null,null,null,627]
[null,null,null,null,null,null,null,null,null,628]
[null,null,null,null,null,null,null,null,null,629]
[null,null,null,null,null,null,null,null,null,630]
[null,null,null,null,null,null,null,null,null,631]
[null,null,null,null,null,null,null,null,null,632]
[null,null,null,null,null,null,null,null,null,633]
[null,null,null,null,null,null,null,null,null,634]
[null,null,null,null,null,null,null,null,null,635]
[null,null,null,null,null,null,null,null,null,636]
[null,null,null,null,null,null,null,null,null,637]
[null,null,null,null,null,null,null,null,null,638]
[null,null,null,null,null,null,null,null,null,639]
[null,null,null,null,null,null,null,null,null,640]
[null,null,null,null,null,null,null,null,null,641]
[null,null,null,null,null,null,null,null,null,{"$f":"J652+1","v":642}]
[null,null,null,null,null,null,null,null,null,643]
[null,null,null,null,null,null,null,null,null,644]
[null,null,null,null,null,null,null,null,null,645]
[null,null,null,null,null,null,null,null,null,646]
[null,null,null,null,null,null,null,null,null,647]
[null,null,null,null,null,null,null,null,null,648]
[null,null,null,null,null,null,null,null,null,649]
[null,null,null,null,null,null,null,null,null,650]
[null,null,null,null,null,null,null,null,null,651]
[null,null,null,null,null,null,null,null,null,652]
[null,null,null,null,null,null,null,null,null,653]
[null,null,null,null,null,null,null,null,null,654]
[null,null,null,null,null,null,null,null,null,655]
[null,null,null,null,null,null,null,null,null,656]
[null,null,null,null,null,null,null,null,null,657]
[null,null,null,null,null,null,null,null,null,658]
[null,null,null,null,null,null,null,null,null,659]
[null,null,null,null,null,null,null,null,null,660]
[null,null,null,null,null,null,null,null,null,661]
[null,null,null,null,null,null,null,null,null,662]
[null,null,null,null,null,null,null,null,null,663]
[null,null,null,null,null,null,null,null,null,664]
[null,null,null,null,null,null,null,null,null,665]
[null,null,null,null,null,null,null,null,null,666]
[null,null,null,null,null,null,null,null,null,667]
[null,null,null,null,null,null,null,null,null,668]
[null,null,null,null,null,null,null,null,null,669]
[null,null,null,null,null,null,null,null,null,670]
[null,null,null,null,null,null,null,null,null,671]
[null,null,null,null,null,null,null,null,null,672]
[null,null,null,null,null,null,null,null,null,673]
[null,null,null,null,null,null,null,null,null,674]
[null,null,null,null,null,null,null,null,null,675]
[null,null,null,null,null,null,null,null,null,676]
[null,null,null,null,null,null,null,null,null,677]
[null,null,null,null,null,null,null,null,null,678]
[null,null,null,null,null,null,null,null,null,679]
[null,null,null,null,null,null,null,null,null,680]
[null,null,null,null,null,null,null,null,null,681]
[null,null,null,null,null,null,null,null,null,682]
[null,null,null,null,null,null,null,null,null,683]
[null,null,null,null,null,null,null,null,null,684]
[null,null,null,null,null,null,null,null,null,685]
[null,null,null,null,null,null,null,null,null,686]
[null,null,null,null,null,null,null,null,null,687]
[null,null,null,null,null,null,null,null,null,688]
[null,null,null,null,null,null,null,null,null,689]
[null,null,null,null,null,null,null,null,null,690]
[null,null,null,null,null,null,null,null,null,691]
[null,null,null,null,null,null,null,null,null,692]
[null,null,null,null,null,null,null,null,null,693]
[null,null,null,null,null,null,null,null,null,694]
[null,null,null,null,null,null,null,null,null,695]
[null,null,null,null,null,null,null,null,null,696]
[null,null,null,null,null,null,null,null,null,697]
[null,null,null,null,null,null,null,null,null,698]
[null,null,null,null,null,null,null,null,null,699]
[null,null,null,null,null,null,null,null,null,700]
[null,null,null,null,null,null,null,null,null,701]
[null,null,null,null,null,null,null,null,null,702]
[null,null,null,null,null,null,null,null,null,703]
[null,null,null,null,null,null,null,null,null,704]
[null,null,null,null,null,null,null,null,null,705]
[null,null,null,null,null,null,null,null,null,{"$f":"J716+1","v":706}]
[null,null,null,null,null,null,null,null,null,707]
[null,null,null,null,null,null,null,null,null,708]
[null,null,null,null,null,null,null,null,null,709]
[null,null,null,null,null,null,null,null,null,710]
[null,null,null,null,null,null,null,null,null,711]
[null,null,null,null,null,null,null,null,null,712]
[null,null,null,null,null,null,null,null,null,713]
[null,null,null,null,null,null,null,null,null,714]
[null,null,null,null,null,null,null,null,null,715]
[null,null,null,null,null,null,null,null,null,716]
[null,null,null,null,null,null,null,null,null,717]
[null,null,null,null,null,null,null,null,null,718]
[null,null,null,null,null,null,null,null,null,719]
[null,null,null,null,null,null,null,null,null,720]
[null,null,null,null,null,null,null,null,null,721]
[null,null,null,null,null,null,null,null,null,722]
[null,null,null,null,null,null,null,null,null,723]
[null,null,null,null,null,null,null,null,null,724]
[null,null,null,null,null,null,null,null,null,725]
[null,null,null,null,null,null,null,null,null,726]
[null,null,null,null,null,null,null,null,null,727]
[null,null,null,null,null,null,null,null,null,728]
[null,null,null,null,null,null,null,null,null,729]
[null,null,null,null,null,null,null,null,null,730]
[null,null,null,null,null,null,null,null,null,731]
[null,null,null,null,null,null,null,null,null,732]
[null,null,null,null,null,null,null,null,null,733]
[null,null,null,null,null,null,null,null,null,734]
[null,null,null,null,null,null,null,null,null,735]
[null,null,null,null,null,null,null,null,null,736]
[null,null,null,null,null,null,null,null,null,737]
[null,null,null,null,null,null,null,null,null,738]
[null,null,null,null,null,null,null,null,null,739]
[null,null,null,null,null,null,null,null,null,740]
[null,null,null,null,null,null,null,null,null,741]
[null,null,null,null,null,null,null,null,null,742]
[null,null,null,null,null,null,null,null,null,743]
[null,null,null,null,null,null,null,null,null,744]
[null,null,null,null,null,null,null,null,null,745]
[null,null,null,null,null,null,null,null,null,746]
[null,null,null,null,null,null,null,null,null,747]
[null,null,null,null,null,null,null,null,null,748]
[null,null,null,null,null,null,null,null,null,749]
[null,null,null,null,null,null,null,null,null,750]
[null,null,null,null,null,null,null,null,null,751]
[null,null,null,null,null,null,null,null,null,752]
[null,null,null,null,null,null,null,null,null,753]
[null,null,null,null,null,null,null,null,null,754]
[null,null,null,null,null,null,null,null,null,755]
[null,null,null,null,null,null,null,null,null,756]
[null,null,null,null,null,null,null,null,null,757]
[null,null,null,null,null,null,null,null,null,758]
[null,null,null,null,null,null,null,null,null,759]
[null,null,null,null,null,null,null,null,null,760]
[null,null,null,null,null,null,null,null,null,761]
[null,null,null,null,null,null,null,null,null,762]
[null,null,null,null,null,null,null,null,null,763]
[null,null,null,null,null,null,null,null,null,764]
[null,null,null,null,null,null,null,null,null,765]
[null,null,null,null,null,null,null,null,null,766]
[null,null,null,null,null,null,null,null,null,767]
[null,null,null,null,null,null,null,null,null,768]
[null,null,null,null,null,null,null,null,null,769]
[null,null,null,null,null,null,null,null,null,{"$f":"J780+1","v":770}]
[null,null,null,null,null,null,null,null,null,771]
[null,null,null,null,null,null,null,null,null,772]
[null,null,null,null,null,null,null,null,null,773]
[null,null,null,null,null,null,null,null,null,774]
[null,null,null,null,null,null,null,null,null,775]
[null,null,null,null,null,null,null,null,null,776]
[null,null,null,null,null,null,null,null,null,777]
[null,null,null,null,null,null,null,null,null,778]
[null,null,null,null,null,null,null,null,null,779]
[null,null,null,null,null,null,null,null,null,780]
[null,null,null,null,null,null,null,null,null,781]
[null,null,null,null,null,null,null,null,null,782]
[null,null,null,null,null,null,null,null,null,783]
[null,null,null,null,null,null,null,null,null,784]
[null,null,null,null,null,null,null,null,null,785]
[null,null,null,null,null,null,null,null,null,786]
[null,null,null,null,null,null,null,null,null,787]
[null,null,null,null,null,null,null,null,null,788]
[null,null,null,null,null,null,null,null,null,789]
[null,null,null,null,null,null,null,null,null,790]
[null,null,null,null,null,null,null,null,null,791]
[null,null,null,null,null,null,null,null,null,792]
[null,null,null,null,null,null,null,null,null,793]
[null,null,null,null,null,null,null,null,null,794]
[null,null,null,null,null,null,null,null,null,795]
[null,null,null,null,null,null,null,null,null,796]
[null,null,null,null,null,null,null,null,null,797]
[null,null,null,null,null,null,null,null,null,798]
[null,null,null,null,null,null,null,null,null,799]
[null,null,null,null,null,null,null,null,null,800]
[null,null,null,null,null,null,null,null,null,801]
[null,null,null,null,null,null,null,null,null,802]
[null,null,null,null,null,null,null,null,null,803]
[null,null,null,null,null,null,null,null,null,804]
[null,null,null,null,null,null,null,null,null,805]
[null,null,null,null,null,null,null,null,null,806]
[null,null,null,null,null,null,null,null,null,807]
[null,null,null,null,null,null,null,null,null,808]
[null,null,null,null,null,null,null,null,null,809]
[null,null,null,null,null,null,null,null,null,810]
[null,null,null,null,null,null,null,null,null,811]
[null,null,null,null,null,null,null,null,null,812]
[null,null,null,null,null,null,null,null,null,813]
[null,null,null,null,null,null,null,null,null,814]
[null,null,null,null,null,null,null,null,null,815]
[null,null,null,null,null,null,null,null,null,816]
[null,null,null,null,null,null,null,null,null,817]
[null,null,null,null,null,null,null,null,null,818]
[null,null,null,null,null,null,null,null,null,819]
[null,null,null,null,null,null,null,null,null,820]
[null,null,null,null,null,null,null,null,null,821]
[null,null,null,null,null,null,null,null,null,822]
[null,null,null,null,null,null,null,null,null,823]
[null,null,null,null,null,null,null,null,null,824]
[null,null,null,null,null,null,null,null,null,825]
[null,null,null,null,null,null,null,null,null,826]
[null,null,null,null,null,null,null,null,null,827]
[null,null,null,null,null,null,null,null,null,828]
[null,null,null,null,null,null,null,null,null,829]
[null,null,null,null,null,null,null,null,null,830]
[null,null,null,null,null,null,null,null,null,831]
[null,null,null,null,null,null,null,null,null,832]
[null,null,null,null,null,null,null,null,null,833]
[null,null,null,null,null,null,null,null,null,{"$f":"J844+1","v":834}]
[null,null,null,null,null,null,null,null,null,835]
[null,null,null,null,null,null,null,null,null,836]
[null,null,null,null,null,null,null,null,null,837]
[null,null,null,null,null,null,null,null,null,838]
[null,null,null,null,null,null,null,null,null,839]
[null,null,null,null,null,null,null,null,null,840]
[null,null,null,null,null,null,null,null,null,841]
[null,null,null,null,null,null,null,null,null,842]
[null,null,null,null,null,null,null,null,null,843]
[null,null,null,null,null,null,null,null,null,844]
[null,null,null,null,null,null,null,null,null,845]
[null,null,null,null,null,null,null,null,null,846]
[null,null,null,null,null,null,null,null,null,847]
[null,null,null,null,null,null,null,null,null,848]
[null,null,null,null,null,null,null,null,null,849]
[null,null,null,null,null,null,null,null,null,850]
[null,null,null,null,null,null,null,null,null,851]
[null,null,null,null,null,null,null,null,null,852]
[null,null,null,null,null,null,null,null,null,853]
[null,null,null,null,null,null,null,null,null,854]
[null,null,null,null,null,null,null,null,null,855]
[null,null,null,null,null,null,null,null,null,856]
[null,null,null,null,null,null,null,null,null,857]
[null,null,null,null,null,null,null,null,null,858]
[null,null,null,null,null,null,null,null,null,859]
[null,null,null,null,null,null,null,null,null,860]
[null,null,null,null,null,null,null,null,null,861]
[null,null,null,null,null,null,null,null,null,862]
[null,null,null,null,null,null,null,null,null,863]
[null,null,null,null,null,null,null,null,null,864]
[null,null,null,null,null,null,null,null,null,865]
[null,null,null,null,null,null,null,null,null,866]
[null,null,null,null,null,null,null,null,null,867]
[null,null,null,null,null,null,null,null,null,868]
[null,null,null,null,null,null,null,null,null,869]
[null,null,null,null,null,null,null,null,null,870]
[null,null,null,null,null,null,null,null,null,871]
[null,null,null,null,null,null,null,null,null,872]
[null,null,null,null,null,null,null,null,null,873]
[null,null,null,null,null,null,null,null,null,874]
[null,null,null,null,null,null,null,null,null,875]
[null,null,null,null,null,null,null,null,null,876]
[null,null,null,null,null,null,null,null,null,877]
[null,null,null,null,null,null,null,null,null,878]
[null,null,null,null,null,null,null,null,null,879]
[null,null,null,null,null,null,null,null,null,880]
[null,null,null,null,null,null,null,null,null,881]
[null,null,null,null,null,null,null,null,null,882]
[null,null,null,null,null,null,null,null,null,883]
[null,null,null,null,null,null,null,null,null,884]
[null,null,null,null,null,null,null,null,null,885]
[null,null,null,null,null,null,null,null,null,886]
[null,null,null,null,null,null,null,null,null,887]
[null,null,null,null,null,null,null,null,null,888]
[null,null,null,null,null,null,null,null,null,889]
[null,null,null,null,null,null,null,null,null,890]
[null,null,null,null,null,null,null,null,null,891]
[null,null,null,null,null,null,null,null,null,892]
[null,null,null,null,null,null,null,null,null,893]
[null,null,null,null,null,null,null,null,null,894]
[null,null,null,null,null,null,null,null,null,895]
[null,null,null,null,null,null,null,null,null,896]
[null,null,null,null,null,null,null,null,null,897]
[null,null,null,null,null,null,null,null,null,{"$f":"J908+1","v":898}]
[null,null,null,null,null,null,null,null,null,899]
[null,null,null,null,null,null,null,null,null,900]
[null,null,null,null,null,null,null,null,null,901]
[null,null,null,null,null,null,null,null,null,902]
[null,null,null,null,null,null,null,null,null,903]
[null,null,null,null,null,null,null,null,null,904]
[null,null,null,null,null,null,null,null,null,905]
[null,null,null,null,null,null,null,null,null,906]
[null,null,null,null,null,null,null,null,null,907]
[null,null,null,null,null,null,null,null,null,908]
[null,null,null,null,null,null,null,null,null,909]
[null,null,null,null,null,null,null,null,null,910]
[null,null,null,null,null,null,null,null,null,911]
[null,null,null,null,null,null,null,null,null,912]
[null,null,null,null,null,null,null,null,null,913]
[null,null,null,null,null,null,null,null,null,914]
[null,null,null,null,null,null,null,null,null,915]
[null,null,null,null,null,null,null,null,null,916]
[null,null,null,null,null,null,null,null,null,917]
[null,null,null,null,null,null,null,null,null,918]
[null,null,null,null,null,null,null,null,null,919]
[null,null,null,null,null,null,null,null,null,920]
[null,null,null,null,null,null,null,null,null,921]
[null,null,null,null,null,null,null,null,null,922]
[null,null,null,null,null,null,null,null,null,923]
[null,null,null,null,null,null,null,null,null,924]
[null,null,null,null,null,null,null,null,null,925]
[null,null,null,null,null,null,null,null,null,926]
[null,null,null,null,null,null,null,null,null,927]
[null,null,null,null,null,null,null,null,null,928]
[null,null,null,null,null,null,null,null,null,929]
[null,null,null,null,null,null,null,null,null,930]
[null,null,null,null,null,null,null,null,null,931]
[null,null,null,null,null,null,null,null,null,932]
[null,null,null,null,null,null,null,null,null,933]
[null,null,null,null,null,null,null,null,null,934]
[null,null,null,null,null,null,null,null,null,935]
[null,null,null,null,null,null,null,null,null,936]
[null,null,null,null,null,null,null,null,null,937]
[null,null,null,null,null,null,null,null,null,938]
[null,null,null,null,null,null,null,null,null,939]
[null,null,null,null,null,null,null,null,null,940]
[null,null,null,null,null,null,null,null,null,941]
[null,null,null,null,null,null,null,null,null,942]
[null,null,null,null,null,null,null,null,null,943]
[null,null,null,null,null,null,null,null,null,944]
[null,null,null,null,null,null,null,null,null,945]
[null,null,null,null,null,null,null,null,null,946]
[null,null,null,null,null,null,null,null,null,947]
[null,null,null,null,null,null,null,null,null,948]
[null,null,null,null,null,null,null,null,null,949]
[null,null,null,null,null,null,null,null,null,950]
[null,null,null,null,null,null,null,null,null,951]
[null,null,null,null,null,null,null,null,null,952]
[null,null,null,null,null,null,null,null,null,953]
[null,null,null,null,null,null,null,null,null,954]
[null,null,null,null,null,null,null,null,null,955]
[null,null,null,null,null,null,null,null,null,956]
[null,null,null,null,null,null,null,null,null,957]
[null,null,null,null,null,null,null,null,null,958]
[null,null,null,null,null,null,null,null,null,959]
[null,null,null,null,null,null,null,null,null,960]
[null,null,null,null,null,null,null,null,null,961]
[null,null,null,null,null,null,null,null,null,{"$f":"J972+1","v":962}]
[null,null,null,null,null,null,null,null,null,963]
[null,null,null,null,null,null,null,null,null,964]
[null,null,null,null,null,null,null,null,null,965]
[null,null,null,null,null,null,null,null,null,966]
[null,null,null,null,null,null,null,null,null,967]
[null,null,null,null,null,null,null,null,null,968]
[null,null,null,null,null,null,null,null,null,969]
[null,null,null,null,null,null,null,null,null,970]
[null,null,null,null,null,null,null,null,null,971]
[null,null,null,null,null,null,null,null,null,972]
[null,null,null,null,null,null,null,null,null,973]
[null,null,null,null,null,null,null,null,null,974]
[null,null,null,null,null,null,null,null,null,975]
[null,null,null,null,null,null,null,null,null,976]
[null,null,null,null,null,null,null,null,null,977]
[null,null,null,null,null,null,null,null,null,978]
[null,null,null,null,null,null,null,null,null,979]
[null,null,null,null,null,null,null,null,null,980]
[null,null,null,null,null,null,null,null,null,981]
[null,null,null,null,null,null,null,null,null,982]
[null,null,null,null,null,null,null,null,null,983]
[null,null,null,null,null,null,null,null,null,984]
[null,null,null,null,null,null,null,null,null,985]
[null,null,null,null,null,null,null,null,null,986]
[null,null,null,null,null,null,null,null,null,987]
[null,null,null,null,null,null,null,null,null,988]
[null,null,null,null,null,null,null,null,null,989]
[null,null,null,null,null,null,null,null,null,990]
[null,null,null,null,null,null,null,null,null,991]
[null,null,null,null,null,null,null,null,null,992]
[null,null,null,null,null,null,null,null,null,993]
[null,null,null,null,null,null,null,null,null,994]
[null,null,null,null,null,null,null,null,null,995]
[null,null,null,null,null,null,null,null,null,996]
[null,null,null,null,null,null,null,null,null,997]
[null,null,null,null,null,null,null,null,null,998]
[null,null,null,null,null,null,null,null,null,999]
[null,null,null,null,null,null,null,null,null,{"$f":"J1010+1","v":1000}]

{"sheet":"Parametric","index":8,"n_rows":108,"n_cols":5,"rows_kept":108,"cut":false,"hidden":false,"merged":[]}
["Parametric uncertainty analysis"]
[]
[]
[]
["Parametric CEA curve"]
["Threshold","NB","seNB","z","pCE"]
[]
[0]
[50]
[100]
[150]
[200]
[250]
[300]
[350]
[400]
[450]
[500]
[550]
[600]
[650]
[700]
[750]
[800]
[850]
[900]
[950]
[1000]
[1050]
[1100]
[1150]
[1200]
[1250]
[1300]
[1350]
[1400]
[1450]
[1500]
[1550]
[1600]
[1650]
[1700]
[1750]
[1800]
[1850]
[1900]
[1950]
[2000]
[2050]
[2100]
[2150]
[2200]
[2250]
[2300]
[2350]
[2400]
[2450]
[2500]
[2550]
[2600]
[2650]
[2700]
[2750]
[2800]
[2850]
[2900]
[2950]
[3000]
[3050]
[3100]
[3150]
[3200]
[3250]
[3300]
[3350]
[3400]
[3450]
[3500]
[3550]
[3600]
[3650]
[3700]
[3750]
[3800]
[3850]
[3900]
[3950]
[4000]
[4050]
[4100]
[4150]
[4200]
[4250]
[4300]
[4350]
[4400]
[4450]
[4500]
[4550]
[4600]
[4650]
[4700]
[4750]
[4800]
[4850]
[4900]
[4950]
[5000]